bitfinex/quotes_SOLUSD_20241110
["timestamp","ask_amount","ask_price","bid_price","bid_amount"]
[1731196801042,161.5,199.99,199.87,21.6305]
[1731196801244,171.10464709,199.98,199.87,21.6305]
[1731196801441,9.60464709,199.97,199.87,21.6305]
[1731196801626,171.10464709,199.98,199.92,9.60464709]
[1731196801817,161.5,199.97,199.92,9.60464709]
[1731196804523,171.10464709,199.97,199.87,21.6305]
[1731196804730,9.60464709,199.96,199.9,9.60464709]
[1731196806049,9.60464709,199.94,199.88,22.8394]
[1731196806255,9.60464709,199.96,199.9,9.60464709]
[1731196806832,9.60464709,199.97,199.88,22.8394]
[1731196807032,9.60464709,199.97,199.91,9.60464709]
[1731196807645,161.5,199.99,199.93,9.60464709]
[1731196807850,171.10464709,199.99,199.93,9.60464709]
[1731196808854,161.5,199.99,199.94,9.60464709]
[1731196809353,171.10464709,199.99,199.93,9.60464709]
[1731196809528,4.900001,200.0,199.95,9.60464709]
[1731196809729,4.900001,200.0,199.96,32.44404709]
[1731196809944,9.60464709,199.99,199.96,22.8394]
[1731196810357,14.50464809,200.0,199.96,22.8394]
[1731196810855,4.900001,200.0,199.96,22.8394]
[1731196811037,4.900001,200.0,199.98,9.60464709]
[1731196811233,4.900001,200.0,199.97,9.60464709]
[1731196811456,4.900001,200.0,199.96,32.44404709]
[1731196812044,4.900001,200.0,199.97,9.60464709]
[1731196812843,4.900001,200.0,199.98,9.60464709]
[1731196813954,4.900001,200.0,199.99,9.60464709]
[1731196814332,4.900001,200.0,199.96,22.8394]
[1731196814536,4.900001,200.0,199.99,9.60464709]
[1731196817851,4.900001,200.0,199.97,9.60464709]
[1731196818355,9.60464709,199.98,199.96,22.8394]
[1731196818561,9.60464709,199.99,199.96,22.8394]
[1731196821358,9.60464709,199.99,199.93,9.60464709]
[1731196821541,4.900001,200.0,199.93,9.60464709]
[1731196821745,9.60464709,199.99,199.93,9.60464709]
[1731196821955,4.900001,200.0,199.92,9.60464709]
[1731196822259,9.60464709,199.99,199.92,9.60464709]
[1731196822567,9.60464709,199.99,199.91,21.4517]
[1731196822568,9.60464709,199.96,199.91,21.4517]
[1731196823556,9.60464709,199.94,199.91,21.4517]
[1731196823766,9.60464709,199.93,199.91,21.4517]
[1731196824066,9.60464709,199.92,199.86,31.05634709]
[1731196824660,9.60464709,199.93,199.87,9.60464709]
[1731196827062,9.60464709,199.94,199.88,9.60464709]
[1731196828462,9.60464709,199.94,199.89,9.60464709]
[1731196828677,9.60464709,199.94,199.88,9.60464709]
[1731196829364,161.5,199.98,199.88,9.60464709]
[1731196829569,9.60464709,199.94,199.88,9.60464709]
[1731196831151,9.60464709,199.95,199.89,9.60464709]
[1731196831672,161.5,199.98,199.91,9.60464709]
[1731196831847,9.60464709,199.96,199.91,9.60464709]
[1731196832545,9.60464709,199.95,199.86,21.4517]
[1731196832751,9.60464709,199.93,199.86,21.4517]
[1731196832963,9.60464709,199.93,199.87,9.60464709]
[1731196835451,9.60464709,199.93,199.88,9.60464709]
[1731196835663,9.60464709,199.94,199.89,9.60464709]
[1731196836049,9.60464709,199.94,199.88,9.60464709]
[1731196836264,9.60464709,199.91,199.86,21.4517]
[1731196836467,9.60464709,199.94,199.88,9.60464709]
[1731196836844,9.60464709,199.93,199.88,9.60464709]
[1731196837269,9.60464709,199.94,199.88,9.60464709]
[1731196838948,9.60464709,199.93,199.88,9.60464709]
[1731196839659,9.60464709,199.91,199.86,21.4517]
[1731196840268,48.40504041,200.0,199.86,21.4517]
[1731196840269,9.60464709,199.94,199.89,9.60464709]
[1731196840648,9.60464709,199.92,199.86,21.4517]
[1731196840845,9.60464709,199.91,199.86,31.05634709]
[1731196841069,9.60464709,199.91,199.87,4.991]
[1731196842174,9.60464709,199.88,199.85,300.0]
[1731196842376,9.60464709,199.86,199.85,300.0]
[1731196843167,5.08645105,199.93,199.85,309.60464709]
[1731196843374,9.60464709,199.93,199.87,9.60464709]
[1731196844068,20.0,199.96,199.87,14.59564709]
[1731196844277,9.60464709,199.93,199.87,14.59564709]
[1731196847772,9.60464709,199.92,199.86,14.59564709]
[1731196851377,9.60464709,199.89,199.85,300.0]
[1731196851586,9.60464709,199.9,199.85,300.0]
[1731196851879,9.60464709,199.88,199.85,300.0]
[1731196852878,9.60464709,199.87,199.85,300.0]
[1731196853083,43.776884,199.89,199.85,300.0]
[1731196853263,23.776884,199.89,199.85,300.0]
[1731196853462,20.0,199.92,199.85,300.0]
[1731196853762,9.60464709,199.86,199.85,300.0]
[1731196855265,22.16080883,199.92,199.85,300.0]
[1731196855266,9.60464709,199.87,199.85,300.0]
[1731196855784,9.60464709,199.86,199.85,300.0]
[1731196856188,9.60464709,199.87,199.85,300.0]
[1731196856364,9.60464709,199.88,199.85,300.0]
[1731196856565,9.60464709,199.9,199.85,300.0]
[1731196857476,9.60464709,199.89,199.85,300.0]
[1731196858580,9.60464709,199.88,199.85,300.0]
[1731196858960,9.60464709,199.86,199.85,300.0]
[1731196859380,53.38153109,199.86,199.85,300.0]
[1731196860266,53.38153109,199.86,199.85,214.14979482]
[1731196860466,53.48153109,199.86,199.85,208.00411517]
[1731196860765,43.776884,199.86,199.85,196.04411517]
[1731196860962,53.38153109,199.86,199.85,196.04411517]
[1731196862475,33.38153109,199.86,199.85,196.04411517]
[1731196862891,53.38153109,199.86,199.85,196.04411517]
[1731196863998,29.60464709,199.86,199.85,196.04411517]
[1731196864177,55.59937955,199.86,199.85,196.04411517]
[1731196864580,35.59937955,199.86,199.85,196.04411517]
[1731196865297,55.59937955,199.86,199.85,196.04411517]
[1731196865495,55.7006687,199.86,199.85,196.04411517]
[1731196870297,46.09602161,199.86,199.85,196.04411517]
[1731196870482,55.7006687,199.86,199.85,196.04411517]
[1731196872789,20.10128915,199.86,199.85,196.04411517]
[1731196872991,29.70593624,199.86,199.85,196.04411517]
[1731196873792,20.10128915,199.86,199.85,196.04411517]
[1731196873992,9.70593624,199.86,199.85,196.04411517]
[1731196874210,0.10128915,199.86,199.85,196.04411517]
[1731196874793,5.00129015,199.86,199.85,196.04411517]
[1731196875892,14.60593724,199.86,199.85,196.04411517]
[1731196876699,34.60593724,199.86,199.85,196.04411517]
[1731196878700,58.38282124,199.86,199.85,196.04411517]
[1731196879392,14.60593724,199.86,199.85,196.04411517]
[1731196879587,34.60593724,199.86,199.85,196.04411517]
[1731196881099,5.00129015,199.86,199.85,196.04411517]
[1731196882595,5.00129015,199.86,199.85,221.06626226]
[1731196884103,25.00129015,199.86,199.85,196.04411517]
[1731196884302,97.0014096,199.86,199.85,9.58988287]
[1731196884514,0.2,199.84,199.75,1000.0]
[1731196884807,9.60464709,199.79,199.75,1000.0]
[1731196884992,20.0,199.82,199.75,1000.0]
[1731196885189,9.60464709,199.82,199.76,9.60464709]
[1731196885405,20.0,199.84,199.76,15.02654371]
[1731196885602,0.10574077,199.77,199.75,1015.02654371]
[1731196885805,0.10574077,199.77,199.75,1000.0]
[1731196887319,0.10574077,199.77,199.75,1015.02654371]
[1731196888507,0.10574077,199.77,199.75,1000.0]
[1731196888913,15.13228448,199.77,199.75,1000.0]
[1731196889209,15.02654371,199.76,199.75,1000.0]
[1731196889410,0.10574077,199.77,199.75,1000.0]
[1731196893812,15.02654371,199.76,199.75,1000.0]
[1731196895297,35.02654371,199.76,199.75,1000.0]
[1731196898405,35.02654371,199.76,199.75,899.89482647]
[1731196900119,91.00230591,199.76,199.75,893.59482647]
[1731196900413,91.00230591,199.76,199.75,887.11443069]
[1731196900414,91.20230591,199.76,199.75,887.11443069]
[1731196900631,91.20230591,199.76,199.75,858.43443069]
[1731196901001,91.20230591,199.76,199.75,850.86443069]
[1731196901726,91.20230591,199.76,199.75,825.62443069]
[1731196902815,91.00230591,199.76,199.75,825.62443069]
[1731196904412,91.00230591,199.76,199.75,817.97513069]
[1731196904610,91.10230591,199.76,199.75,811.37513069]
[1731196904810,91.10230591,199.76,199.75,804.77513069]
[1731196905317,91.10230591,199.76,199.75,793.94513069]
[1731196905619,91.20833258,199.76,199.75,778.60513069]
[1731196905807,91.30833258,199.76,199.75,778.60513069]
[1731196906322,91.30833258,199.76,199.75,774.77513069]
[1731196906525,91.20833258,199.76,199.75,774.77513069]
[1731196907227,89.00945438,199.76,199.75,774.77513069]
[1731196908418,88.90945438,199.76,199.75,774.77513069]
[1731196908727,65.13257038,199.76,199.75,774.77513069]
[1731196909516,45.13257038,199.76,199.75,774.77513069]
[1731196909830,68.90945438,199.76,199.75,774.77513069]
[1731196910218,38.90945438,199.76,199.75,774.77513069]
[1731196910411,39.00945438,199.76,199.75,774.77513069]
[1731196910819,59.00945438,199.76,199.75,774.77513069]
[1731196911012,89.00945438,199.76,199.75,774.77513069]
[1731196912327,89.10945438,199.76,199.75,767.89513069]
[1731196912528,104.13599809,199.76,199.75,651.17719524]
[1731196912833,89.10945438,199.76,199.75,651.17719524]
[1731196914937,89.00945438,199.76,199.75,651.17719524]
[1731196915313,89.10945438,199.76,199.75,651.17719524]
[1731196915516,89.00945438,199.76,199.75,651.17719524]
[1731196915713,89.10945438,199.76,199.75,651.17719524]
[1731196915915,94.11545438,199.76,199.75,538.65119956]
[1731196918111,109.14199809,199.76,199.75,498.07123911]
[1731196918319,114.52799891,199.76,199.75,498.07123911]
[1731196918933,114.52799891,199.76,199.75,385.54524343]
[1731196919633,109.14199809,199.76,199.75,385.54524343]
[1731196920835,94.11545438,199.76,199.75,385.54524343]
[1731196921213,99.5014552,199.76,199.75,385.54524343]
[1731196921416,114.52799891,199.76,199.75,385.54524343]
[1731196922430,121.06355477,199.76,199.75,385.54524343]
[1731196923223,91.01046735,199.76,199.75,357.27894343]
[1731196923528,121.06355477,199.76,199.75,357.27894343]
[1731196924127,79.5014552,199.76,199.75,357.27894343]
[1731196924536,55.7245712,199.76,199.75,357.27894343]
[1731196925012,50.7185712,199.76,199.75,357.27894343]
[1731196925427,35.68613641,199.76,199.75,357.27894343]
[1731196925634,35.58613641,199.76,199.75,357.27894343]
[1731196925837,39.928795,199.76,199.75,357.27894343]
[1731196926036,39.828795,199.76,199.75,357.27894343]
[1731196926424,39.928795,199.76,199.75,357.27894343]
[1731196926733,39.828795,199.76,199.75,357.27894343]
[1731196926922,39.928795,199.76,199.75,357.27894343]
[1731196927132,39.82276833,199.76,199.75,357.27894343]
[1731196927328,45.23684633,199.76,199.75,357.27894343]
[1731196927523,65.13684633,199.76,199.75,357.27894343]
[1731196929232,35.23684633,199.76,199.75,357.27894343]
[1731196929525,35.13684633,199.76,199.75,357.27894343]
[1731196930047,35.23684633,199.76,199.75,357.27894343]
[1731196931640,35.33684633,199.76,199.75,357.27894343]
[1731196934156,35.23684633,199.76,199.75,357.27894343]
[1731196934351,35.33684633,199.76,199.75,357.27894343]
[1731196935633,65.64928619,199.76,199.75,357.27894343]
[1731196936037,71.03528701,199.76,199.75,357.27894343]
[1731196936749,141.03528701,199.76,199.75,357.27894343]
[1731196936936,71.03528701,199.76,199.75,357.27894343]
[1731196937954,55.9925496,199.76,199.75,357.27894343]
[1731196938255,49.45699374,199.76,199.75,357.27894343]
[1731196938558,5.58010974,199.76,199.75,357.27894343]
[1731196938854,5.68010974,199.76,199.75,357.27894343]
[1731196939339,5.58010974,199.76,199.75,357.27894343]
[1731196939835,5.68010974,199.76,199.75,357.27894343]
[1731196940160,5.58010974,199.76,199.75,357.27894343]
[1731196940454,0.19410892,199.76,199.75,357.27894343]
[1731196940753,20.29410892,199.76,199.75,357.27894343]
[1731196941537,20.19410892,199.76,199.75,357.27894343]
[1731196941733,20.29410892,199.76,199.75,357.27894343]
[1731196942336,20.29410892,199.76,199.75,244.75294775]
[1731196942562,49.45699374,199.76,199.75,244.75294775]
[1731196943831,119.45699374,199.76,199.75,244.75294775]
[1731196944037,125.9925496,199.76,199.75,244.75294775]
[1731196945655,126.10020514,199.76,199.75,244.75294775]
[1731196947249,126.00609622,199.76,199.75,244.75294775]
[1731196948150,32.22921222,199.76,199.75,244.75294775]
[1731196948844,12.12921222,199.76,199.75,244.75294775]
[1731196949558,12.22921222,199.76,199.75,244.75294775]
[1731196949952,82.22921222,199.76,199.75,244.75294775]
[1731196950149,103.75293757,199.76,199.75,239.77285669]
[1731196950340,153.75293757,199.76,199.75,239.77285669]
[1731196950539,177.52982157,199.76,199.75,239.77285669]
[1731196950743,162.52982157,199.76,199.75,239.77285669]
[1731196951237,177.52982157,199.76,199.75,216.00285669]
[1731196951659,162.52982157,199.76,199.75,216.00285669]
[1731196951842,132.22921222,199.76,199.75,216.00285669]
[1731196952041,62.22921222,199.76,199.75,216.00285669]
[1731196952453,32.22921222,199.76,199.75,216.00285669]
[1731196952975,55.69365636,199.76,199.75,216.00285669]
[1731196953758,141.4171,199.76,199.75,130.58362467]
[1731196953961,162.42087753,199.76,199.75,130.58362467]
[1731196954261,163.56410622,199.76,199.75,96.18042467]
[1731196954447,163.56410622,199.76,199.75,93.63062467]
[1731196954650,163.56410622,199.76,199.75,87.06042467]
[1731196955150,163.56410622,199.76,199.75,81.95542467]
[1731196955355,163.56410622,199.76,199.75,70.93802467]
[1731196955557,133.56410622,199.76,199.75,16.0937685]
[1731196955755,133.56410622,199.76,199.75,10.7880685]
[1731196957150,133.56410622,199.76,199.75,7.8034685]
[1731196957477,133.56410622,199.76,199.75,6.85e-05]
[1731196957645,0.1,199.63,199.58,6.1472]
[1731196957841,0.1,199.65,199.58,6.1472]
[1731196958053,20.0,199.64,199.57,16.3096]
[1731196958280,0.1,199.58,199.57,16.3096]
[1731196958644,25.38600082,199.58,199.57,16.3096]
[1731196958862,55.38600082,199.58,199.57,16.3096]
[1731196959075,50.0,199.58,199.57,16.3096]
[1731196959251,20.0,199.58,199.57,16.3096]
[1731196959462,0.1,199.64,199.57,16.3096]
[1731196959657,0.1,199.63,199.57,16.3096]
[1731196959850,5.48600082,199.65,199.58,6.2332]
[1731196959851,0.1,199.64,199.58,6.2332]
[1731196960059,30.0,199.63,199.58,6.2332]
[1731196961268,0.1,199.64,199.58,6.2332]
[1731196961646,20.1,199.64,199.58,6.2332]
[1731196961861,0.1,199.61,199.58,6.2332]
[1731196962872,20.1,199.62,199.58,6.2332]
[1731196963051,5.58600082,199.62,199.58,6.2332]
[1731196963250,20.0,199.61,199.58,6.2332]
[1731196963462,40.051001,199.61,199.58,6.2332]
[1731196964567,40.151001,199.61,199.58,6.2332]
[1731196964958,45.53700182,199.61,199.58,6.2332]
[1731196965164,0.1,199.6,199.58,6.2332]
[1731196965548,0.10931304,199.59,199.58,6.2332]
[1731196966763,20.20931304,199.59,199.58,6.2332]
[1731196967065,0.1,199.55,199.53,22.3587]
[1731196967455,0.1,199.56,199.53,22.3587]
[1731196967662,5.48600082,199.56,199.53,22.3587]
[1731196967867,20.0,199.55,199.53,22.3587]
[1731196968071,20.1,199.55,199.49,0.590018]
[1731196968259,25.48600082,199.55,199.49,0.590018]
[1731196968456,25.38600082,199.55,199.49,0.590018]
[1731196968680,25.48600082,199.55,199.49,0.590018]
[1731196969376,0.1,199.5,199.49,0.590018]
[1731196969578,25.58600082,199.5,199.49,0.590018]
[1731196969968,31.69303074,199.5,199.49,0.590018]
[1731196970173,125.46991474,199.5,199.49,0.590018]
[1731196970360,0.1,199.47,199.4,22.3587]
[1731196970557,0.2,199.47,199.4,22.3587]
[1731196970963,0.1,199.48,199.4,22.3587]
[1731196971166,0.2,199.48,199.4,22.3587]
[1731196971373,0.1,199.47,199.4,22.3587]
[1731196971563,20.1,199.47,199.4,22.3587]
[1731196971981,15.1,199.47,199.4,22.3587]
[1731196973573,5.0133,199.47,199.4,22.3587]
[1731196973958,25.48600082,199.46,199.37,6.4424]
[1731196974165,31.49303074,199.46,199.37,6.4424]
[1731196974666,25.38600082,199.46,199.37,6.4424]
[1731196975184,30.39960082,199.46,199.37,6.4424]
[1731196975485,20.0,199.44,199.37,6.4424]
[1731196976096,20.0,199.45,199.37,6.4424]
[1731196976396,20.1,199.42,199.37,6.4424]
[1731196977187,20.0,199.42,199.37,6.4424]
[1731196978371,0.1,199.44,199.37,6.4424]
[1731196978689,20.0,199.42,199.37,6.4424]
[1731196980087,20.1,199.42,199.37,6.4424]
[1731196980469,20.0,199.42,199.37,6.4424]
[1731196980868,20.0,199.4,199.37,6.4424]
[1731196982688,4.95013634,199.45,199.37,1.542399]
[1731196982990,20.0,199.42,199.37,1.542399]
[1731196983197,9.86403634,199.45,199.37,1.542399]
[1731196984090,9.96403634,199.45,199.37,1.542399]
[1731196984266,9.86403634,199.45,199.37,1.542399]
[1731196984468,20.0,199.44,199.37,1.542399]
[1731196984684,20.0,199.42,199.37,1.542399]
[1731196985588,0.09737665,199.38,199.36,16.1255]
[1731196985793,20.0,199.36,199.35,0.93742236]
[1731196986472,20.1,199.36,199.35,0.93742236]
[1731196986681,25.116,199.36,199.35,0.93742236]
[1731196986884,25.016,199.36,199.35,0.93742236]
[1731196987090,25.116,199.36,199.35,0.93742236]
[1731196987872,25.016,199.36,199.35,0.93742236]
[1731196988073,20.0,199.36,199.35,0.93742236]
[1731196989091,20.1,199.36,199.35,0.93742236]
[1731196989572,20.0,199.36,199.35,0.93742236]
[1731196989777,20.1,199.36,199.35,0.93742236]
[1731196990405,20.0,199.36,199.35,0.93742236]
[1731196991198,20.1,199.36,199.35,0.93742236]
[1731196991800,20.0,199.36,199.35,0.93742236]
[1731196991986,20.1,199.36,199.35,0.93742236]
[1731196992586,20.0,199.36,199.35,0.93742236]
[1731196992794,20.1,199.36,199.35,0.93742236]
[1731196993669,20.0,199.36,199.35,0.93742236]
[1731196993869,20.1,199.36,199.35,0.93742236]
[1731196994794,20.0,199.36,199.35,0.93742236]
[1731196995395,20.1,199.36,199.35,0.93742236]
[1731196996795,37.062418,199.36,199.35,0.93742236]
[1731196998999,60.839302,199.36,199.35,0.93742236]
[1731197002185,65.68943834,199.36,199.35,0.93742236]
[1731197002406,0.1,199.32,199.29,16.962418]
[1731197002606,0.1,199.31,199.29,16.962418]
[1731197002982,0.1,199.33,199.29,16.962418]
[1731197003397,0.1,199.32,199.29,16.962418]
[1731197003607,0.1,199.32,199.29,15.962418]
[1731197003608,20.0,199.32,199.29,15.962418]
[1731197004801,20.0,199.3,199.29,15.962418]
[1731197005490,20.09557904,199.3,199.29,15.962418]
[1731197005799,25.11307904,199.3,199.29,15.962418]
[1731197006387,20.09557904,199.3,199.29,15.962418]
[1731197007908,0.09557904,199.3,199.29,16.062418]
[1731197008385,0.09557904,199.3,199.29,15.962418]
[1731197014487,20.09557904,199.3,199.29,15.962418]
[1731197017011,0.09557904,199.3,199.26,6.4424]
[1731197017221,20.0,199.29,199.26,6.4424]
[1731197017388,161.5,199.28,199.21,0.1]
[1731197017588,4.85013634,199.27,199.19,0.1]
[1731197017995,4.85013634,199.27,199.2,0.1]
[1731197018213,20.0,199.25,199.21,0.1]
[1731197018509,20.0,199.25,199.2,0.1]
[1731197018706,20.0,199.25,199.17,16.3063]
[1731197018707,25.0188,199.25,199.19,0.1]
[1731197019098,20.0,199.23,199.21,0.1]
[1731197019796,20.0,199.23,199.1,15.20379923]
[1731197019797,0.1,199.21,199.1,0.1]
[1731197019995,25.28346967,199.21,199.14,16.3063]
[1731197020202,20.0,199.18,199.14,16.3063]
[1731197021114,20.0,199.15,199.14,16.3063]
[1731197023600,20.0,199.15,199.13,0.1]
[1731197025522,0.09522759,199.14,199.13,0.1]
[1731197026192,0.09522759,199.14,199.12,0.1]
[1731197026595,0.09522759,199.14,199.13,0.1]
[1731197026817,0.09522759,199.14,199.12,0.1]
[1731197027611,0.09522759,199.14,199.11,0.1]
[1731197028818,20.0,199.13,199.11,0.1]
[1731197029120,25.0219,199.13,199.09,0.590018]
[1731197029921,20.0,199.11,199.09,0.590018]
[1731197030705,50.0,199.1,199.09,0.590018]
[1731197031228,20.0,199.09,199.05,0.1]
[1731197032305,20.0,199.07,199.05,0.1]
[1731197032506,20.0,199.07,199.03,16.3063]
[1731197032507,20.0,199.07,199.03,15.9063]
[1731197033224,30.0,199.08,199.03,31.01009923]
[1731197033523,0.09522759,199.14,199.07,15.10379923]
[1731197033709,0.09522759,199.14,199.11,15.10379923]
[1731197033915,0.09522759,199.14,199.08,6.3864]
[1731197035627,20.09522759,199.14,199.08,6.3864]
[1731197036429,0.09522759,199.14,199.08,6.3864]
[1731197037323,0.09522759,199.14,199.08,21.49019923]
[1731197037518,0.09522759,199.14,199.08,6.3864]
[1731197041008,0.09522759,199.14,199.06,15.8122]
[1731197041218,20.0,199.13,199.02,22.2014]
[1731197041924,20.0,199.11,198.95,322.2014]
[1731197042127,20.0,199.11,198.96,15.10379923]
[1731197042427,20.0,199.11,198.98,15.10379923]
[1731197043009,20.0,199.11,198.98,0.1]
[1731197043219,20.0,199.1,198.95,337.30519923]
[1731197043438,20.0,199.1,198.97,15.10379923]
[1731197044111,20.0,199.1,198.98,15.10379923]
[1731197044321,20.0,199.1,198.97,15.10379923]
[1731197044520,20.0,199.12,198.97,15.10379923]
[1731197044723,25.022,199.12,198.97,15.10379923]
[1731197044923,25.022,199.12,198.96,15.10379923]
[1731197045528,0.1073864,198.97,198.96,15.10379923]
[1731197045730,0.1073864,198.97,198.95,337.30519923]
[1731197046334,0.1073864,198.97,198.95,322.2014]
[1731197047416,0.1073864,198.97,198.95,337.30519923]
[1731197047615,0.1073864,198.97,198.95,322.2014]
[1731197051334,0.1073864,198.97,198.95,316.394499]
[1731197051537,0.1073864,198.97,198.95,294.193099]
[1731197060447,0.1073864,198.97,198.95,294.293099]
[1731197060950,0.1073864,198.97,198.95,294.193099]
[1731197062231,20.1073864,198.97,198.95,294.193099]
[1731197062928,0.1073864,198.97,198.95,286.693099]
[1731197063847,20.0,198.96,198.95,246.4797937]
[1731197064230,20.0,198.96,198.95,226.37314105]
[1731197065635,40.10558381,198.96,198.95,226.37314105]
[1731197066452,63.98246781,198.96,198.95,226.37314105]
[1731197066749,69.10194859,198.96,198.95,226.37314105]
[1731197067658,99.10194859,198.96,198.95,226.37314105]
[1731197068031,75.32506459,198.96,198.95,226.37314105]
[1731197069753,176.33440909,198.96,198.95,201.37314105]
[1731197069949,182.20925275,198.96,198.95,201.37314105]
[1731197070337,105.07679225,198.96,198.95,201.37314105]
[1731197072234,81.19990825,198.96,198.95,201.37314105]
[1731197072438,25.32506459,198.96,198.95,201.37314105]
[1731197072639,5.32506459,198.96,198.95,201.37314105]
[1731197073944,0.10558381,198.96,198.95,201.37314105]
[1731197075438,0.10558381,198.96,198.95,200.37314105]
[1731197076157,25.13168381,198.96,198.95,200.37314105]
[1731197076373,25.98042747,198.96,198.95,200.37314105]
[1731197077341,20.10558381,198.96,198.95,200.37314105]
[1731197079555,0.10558381,198.96,198.95,200.37314105]
[1731197080938,0.10558381,198.96,198.95,200.47314105]
[1731197082050,0.10558381,198.96,198.95,200.37314105]
[1731197082873,0.10281044,198.97,198.95,200.47314105]
[1731197083040,0.10281044,198.97,198.96,0.1]
[1731197083247,0.10281044,198.97,198.95,200.47314105]
[1731197083452,0.10281044,198.97,198.95,200.37314105]
[1731197083655,0.10281044,198.97,198.95,199.37314105]
[1731197083854,0.10281044,198.97,198.95,199.47314105]
[1731197084174,0.10281044,198.97,198.95,199.37314105]
[1731197084674,0.10281044,198.97,198.96,6.4957]
[1731197085557,0.1991693,198.97,198.96,6.4957]
[1731197087248,0.09635886,198.97,198.96,6.4957]
[1731197087959,0.09635886,198.97,198.96,5.9957]
[1731197092464,0.09635886,198.97,198.95,199.37314105]
[1731197094360,20.0,198.96,198.95,199.37314105]
[1731197095586,20.0,198.96,198.95,194.92177909]
[1731197095761,20.0,198.96,198.95,181.56769321]
[1731197095956,20.0,198.96,198.95,177.11633125]
[1731197096158,20.0,198.96,198.95,168.21360733]
[1731197096370,20.0,198.96,198.95,159.31088341]
[1731197096682,20.0,198.96,198.95,145.95679753]
[1731197098167,43.776884,198.96,198.95,145.95679753]
[1731197098372,55.46427902,198.96,198.95,145.95679753]
[1731197099466,50.40989818,198.96,198.95,145.95679753]
[1731197099869,55.55847268,198.96,198.95,145.95679753]
[1731197100859,31.78158868,198.96,198.95,145.95679753]
[1731197101172,20.0,198.96,198.95,145.95679753]
[1731197102162,0.09635886,198.97,198.95,145.95679753]
[1731197103679,20.09635886,198.97,198.95,145.95679753]
[1731197104178,0.09635886,198.97,198.95,145.95679753]
[1731197105459,0.09524547,198.96,198.95,145.95679753]
[1731197105777,0.09524547,198.96,198.95,161.26059676]
[1731197106086,0.20517798,198.97,198.96,0.2]
[1731197106582,0.20780603,198.98,198.96,0.2]
[1731197106583,0.20780603,198.98,198.97,0.2]
[1731197106793,0.19719836,199.0,198.97,0.2]
[1731197106794,0.19719836,199.0,198.99,0.2]
[1731197107079,0.19719836,199.0,198.99,15.30379923]
[1731197107278,0.09382696,199.0,198.99,0.2]
[1731197107476,0.09382696,199.0,198.97,22.4504]
[1731197107668,0.09382696,199.0,198.97,22.5504]
[1731197107862,0.09382696,199.0,198.97,22.4504]
[1731197108067,32.15158746,199.0,198.95,145.95679753]
[1731197108264,20.0,198.98,198.95,145.95679753]
[1731197108572,20.0,198.96,198.95,145.95679753]
[1731197110470,50.0,198.96,198.95,145.95679753]
[1731197110862,30.0,198.96,198.95,145.95679753]
[1731197111067,30.0,198.96,198.95,161.83679753]
[1731197111593,0.09382696,199.0,198.96,6.5704]
[1731197113078,0.09382696,199.0,198.97,0.1]
[1731197113280,0.09382696,199.0,198.99,0.1]
[1731197113688,0.09382696,199.0,198.99,15.30379923]
[1731197113868,0.09382696,199.0,198.99,0.2]
[1731197114371,0.09382696,199.0,198.96,6.6704]
[1731197114677,0.09382696,199.0,198.98,0.1]
[1731197115092,0.09382696,199.0,198.97,0.2]
[1731197115273,0.09382696,199.0,198.99,0.2]
[1731197115598,0.09382696,199.0,198.99,0.1]
[1731197116795,0.09382696,199.0,198.99,0.2]
[1731197119297,0.10826285,199.01,199.0,0.2]
[1731197120171,0.10826285,199.01,199.0,0.1]
[1731197120886,0.10826285,199.01,199.0,0.2]
[1731197123477,0.09145913,199.02,199.01,0.2]
[1731197123678,0.09145913,199.02,199.01,15.30379923]
[1731197123892,0.10664964,199.03,199.02,0.2]
[1731197124094,0.10664964,199.03,199.02,15.30379923]
[1731197124400,0.10664964,199.03,199.02,0.1]
[1731197124588,0.10664964,199.03,199.01,22.0132]
[1731197125304,0.10664964,199.03,199.01,22.1132]
[1731197125604,0.19813419,199.03,199.02,0.2]
[1731197126986,0.19813419,199.03,199.02,15.30379923]
[1731197127188,0.09148455,199.03,199.02,0.2]
[1731197129500,0.09058928,199.05,199.04,0.2]
[1731197129707,0.09058928,199.05,199.04,40.08489154]
[1731197129893,0.09975523,199.06,199.04,40.08489154]
[1731197129894,0.09975523,199.06,199.05,61.09388323]